[Event "Velká cena Novohradska - A"]
[Site "Nové Hrady, Czech Republic"]
[Date "2024.10.12"]
[Round "2.3"]
[White "Gregor, Alexandr"]
[Black "Šebesta, Marek"]
[Result "0-1"]
[TimeControl "2x20min+10s/tah"]
[WhiteFideId "23735813"]
[BlackFideId "23765119"]
[WhiteElo "1813"]
[BlackElo "1707"]

1. e4 {[%clk 00:20:19]} {[%emt 00:00:02]} e5 {[%clk 00:20:19]} {[%emt
00:00:01]} 2. Nf3 {[%clk 00:20:27]} Nc6 {[%clk 00:20:28]} 3. Bc4 {[%clk
00:20:36]} {[%emt 00:00:03]} Nf6 {[%clk 00:20:33]} {[%emt 00:00:05]} 4. d3
{[%clk 00:20:33]} {[%emt 00:00:13]} Bc5 {[%clk 00:20:41]} {[%emt 00:00:02]} 5.
O-O {[%clk 00:20:40]} {[%emt 00:00:02]} d6 {[%clk 00:20:23]} {[%emt 00:00:28]}
6. h3 {[%clk 00:20:32]} {[%emt 00:00:18]} O-O {[%clk 00:20:13]} {[%emt
00:00:21]} 7. Bg5 {[%clk 00:20:21]} {[%emt 00:00:22]} Na5 {[%clk 00:19:31]}
{[%emt 00:00:52]} 8. Bb3 {[%clk 00:20:13]} {[%emt 00:00:17]} Nxb3 {[%clk
00:19:33]} {[%emt 00:00:08]} 9. axb3 {[%clk 00:20:19]} {[%emt 00:00:04]} a6
{[%clk 00:19:40]} {[%emt 00:00:03]} 10. c3 {[%clk 00:20:12]} {[%emt 00:00:17]}
h6 {[%clk 00:18:55]} {[%emt 00:00:55]} 11. Bh4 {[%clk 00:20:12]} {[%emt
00:00:10]} Re8 {[%clk 00:18:35]} {[%emt 00:00:29]} 12. b4 {[%clk 00:20:09]}
{[%emt 00:00:14]} Ba7 {[%clk 00:18:28]} {[%emt 00:00:15]} 13. Nbd2 {[%clk
00:19:12]} {[%emt 00:01:10]} c6 {[%clk 00:17:57]} {[%emt 00:00:40]} 14. Qc2
{[%clk 00:18:36]} {[%emt 00:00:46]} Re6 {[%clk 00:15:38]} {[%emt 00:02:28]} 15.
d4 {[%clk 00:17:58]} {[%emt 00:00:50]} Qc7 {[%clk 00:14:01]} {[%emt 00:01:46]}
16. dxe5 {[%clk 00:16:59]} {[%emt 00:01:09]} dxe5 {[%clk 00:13:55]} {[%emt
00:00:16]} 17. Nc4 {[%clk 00:16:05]} {[%emt 00:01:04]} Nh5 {[%clk 00:13:28]}
{[%emt 00:00:37]} 18. Rad1 {[%clk 00:15:08]} {[%emt 00:01:05]} b5 {[%clk
00:12:21]} {[%emt 00:01:19]} 19. Rd8+ {[%clk 00:12:03]} {[%emt 00:03:14]} Kh7
{[%clk 00:12:02]} {[%emt 00:00:30]} 20. Ncxe5 {[%clk 00:10:29]} {[%emt
00:01:44]} Rxe5 {[%clk 00:12:09]} {[%emt 00:00:03]} 21. Nxe5 {[%clk 00:10:32]}
{[%emt 00:00:07]} Qxe5 {[%clk 00:12:09]} {[%emt 00:00:10]} 22. Kh1 {[%clk
00:07:17]} {[%emt 00:03:24]} g5 {[%clk 00:05:04]} {[%emt 00:07:15]} 23. Bg3
{[%clk 00:07:13]} {[%emt 00:00:14]} Nxg3+ {[%clk 00:05:13]} {[%emt 00:00:02]}
24. fxg3 {[%clk 00:07:17]} {[%emt 00:00:05]} Kg7 {[%clk 00:04:58]} {[%emt
00:00:24]} 25. Qd3 {[%clk 00:06:41]} {[%emt 00:00:47]} Qe7 {[%clk 00:02:25]}
{[%emt 00:02:41]} 26. b3 {[%clk 00:00:40]} {[%emt 00:06:14]} Rb8 {[%clk
00:01:49]} {[%emt 00:00:46]} 27. c4 {[%clk 00:00:22]} {[%emt 00:00:28]} Be6
{[%clk 00:01:49]} {[%emt 00:00:10]} 28. Qc3+ {[%clk 00:00:14]} {[%emt
00:00:17]} f6 {[%clk 00:01:59]} 29. Rxb8 {[%clk 00:00:13]} {[%emt 00:00:12]}
Bxb8 {[%clk 00:02:08]} {[%emt 00:00:02]} 30. cxb5 {[%clk 00:00:15]} {[%emt
00:00:07]} cxb5 {[%clk 00:01:47]} {[%emt 00:00:30]} 31. Qc6 {[%clk 00:00:16]}
{[%emt 00:00:10]} Bxb3 {[%clk 00:00:47]} {[%emt 00:01:09]} 32. Qxa6 {[%clk
00:00:18]} {[%emt 00:00:09]} Bc4 {[%clk 00:00:57]} 33. Rd1 {[%clk 00:00:12]}
{[%emt 00:00:16]} Bxg3 {[%clk 00:00:46]} {[%emt 00:00:20]} 34. Qc6 {[%clk
00:00:15]} {[%emt 00:00:08]} Bf7 {[%emt 00:00:43]} 35. Qxb5 {[%clk 00:00:12]}
{[%emt 00:00:11]} Qxe4 {[%clk 00:00:21]} {[%emt 00:00:04]} 36. Qd7 {[%clk
00:00:14]} {[%emt 00:00:07]} Qxb4 {[%clk 00:00:14]} {[%emt 00:00:17]} 37. Qd8
{[%clk 00:00:12]} {[%emt 00:00:13]} Qb3 {[%clk 00:00:14]} {[%emt 00:00:11]} 38.
Rf1 {[%clk 00:00:16]} {[%emt 00:00:05]} Qc3 {[%clk 00:00:21]} {[%emt 00:00:02]}
39. Qd1 {[%clk 00:00:11]} {[%emt 00:00:16]} Be5 {[%clk 00:00:22]} {[%emt
00:00:09]} 40. Rf3 {[%clk 00:00:12]} {[%emt 00:00:09]} Qd4 {[%clk 00:00:25]}
{[%emt 00:00:06]} 41. Qe2 {[%clk 00:00:15]} {[%emt 00:00:08]} Qa1+ {[%clk
00:00:34]} {[%emt 00:00:01]} 42. Rf1 {[%clk 00:00:23]} Qa2 {[%clk 00:00:40]}
{[%emt 00:00:05]} 43. Qb5 {[%clk 00:00:18]} {[%emt 00:00:16]} Qc4 {[%clk
00:00:39]} {[%emt 00:00:11]} 44. Qb1 {[%clk 00:00:22]} {[%emt 00:00:07]} Qc6
{[%clk 00:00:33]} {[%emt 00:00:14]} 45. Qf5 {[%clk 00:00:11]} {[%emt 00:00:22]}
Bg6 {[%clk 00:00:32]} {[%emt 00:00:10]} 46. Qg4 {[%clk 00:00:13]} {[%emt
00:00:08]} Be4 {[%clk 00:00:28]} {[%emt 00:00:15]} 47. h4 {[%clk 00:00:12]}
{[%emt 00:00:11]} f5 {[%clk 00:00:24]} {[%emt 00:00:14]} 48. Qe2 {[%clk
00:00:11]} {[%emt 00:00:10]} Qc2 {[%clk 00:00:18]} {[%emt 00:00:16]} 49. Qxc2
{[%clk 00:00:11]} {[%emt 00:00:09]} Bxc2 {[%clk 00:00:26]} {[%emt 00:00:02]} 50.
hxg5 {[%clk 00:00:19]} {[%emt 00:00:03]} hxg5 {[%clk 00:00:35]} 51. Rc1 {[%clk
00:00:25]} {[%emt 00:00:05]} Be4 {[%clk 00:00:43]} {[%emt 00:00:02]} 52. Rc5
{[%clk 00:00:32]} {[%emt 00:00:03]} Bf4 {[%clk 00:00:46]} {[%emt 00:00:06]} 53.
Rc3 {[%clk 00:00:30]} {[%emt 00:00:12]} Kf6 {[%clk 00:00:49]} {[%emt 00:00:07]}
54. Kg1 {[%clk 00:00:39]} {[%emt 00:00:02]} Ke5 {[%clk 00:00:50]} {[%emt
00:00:09]} 55. Kf2 {[%clk 00:00:44]} {[%emt 00:00:04]} Bd2 {[%clk 00:00:28]}
{[%emt 00:00:32]} 56. Rc5+ {[%clk 00:00:42]} {[%emt 00:00:13]} Bd5 {[%clk
00:00:37]} 57. Rc2 {[%clk 00:00:47]} {[%emt 00:00:06]} Ba5 {[%clk 00:00:38]}
{[%emt 00:00:07]} 58. Re2+ {[%clk 00:00:51]} {[%emt 00:00:07]} Be4 {[%clk
00:00:48]} {[%emt 00:00:01]} 59. Rb2 {[%clk 00:00:57]} {[%emt 00:00:04]} Kf4
{[%clk 00:00:27]} {[%emt 00:00:30]} 60. Rb5 {[%clk 00:00:45]} {[%emt 00:00:23]}
Bc3 {[%clk 00:00:27]} {[%emt 00:00:10]} 61. Rb3 {[%clk 00:00:25]} {[%emt
00:00:30]} Bd4+ {[%clk 00:00:36]} {[%emt 00:00:01]} 62. Kf1 {[%clk 00:00:34]}
Bd5 {[%clk 00:00:15]} {[%emt 00:00:32]} 63. Rb4 {[%clk 00:00:39]} {[%emt
00:00:06]} Ke3 {[%clk 00:00:22]} {[%emt 00:00:02]} 64. Rb8 {[%clk 00:00:34]}
{[%emt 00:00:15]} Bc4+ {[%clk 00:00:28]} {[%emt 00:00:03]} 65. Kg1 {[%clk
00:00:40]} {[%emt 00:00:05]} Kf4+ {[%clk 00:00:33]} {[%emt 00:00:05]} 66. Kh2
{[%clk 00:00:37]} {[%emt 00:00:12]} Bd5 {[%emt 00:00:25]} 67. Rd8 {[%clk
00:00:33]} {[%emt 00:00:13]} Ke4 {[%clk 00:00:28]} {[%emt 00:00:02]} 68. Re8+
{[%clk 00:00:36]} {[%emt 00:00:07]} Be5+ {[%clk 00:00:38]} 69. Kg1 {[%clk
00:00:41]} {[%emt 00:00:05]} f4 {[%clk 00:00:30]} {[%emt 00:00:18]} 70. Kf2
{[%clk 00:00:30]} {[%emt 00:00:21]} Kf5 {[%clk 00:00:31]} {[%emt 00:00:08]} 71.
Rf8+ {[%clk 00:00:38]} {[%emt 00:00:02]} Kg4 {[%clk 00:00:33]} {[%emt
00:00:07]} 72. Rd8 {[%clk 00:00:31]} {[%emt 00:00:19]} Bc6 {[%clk 00:00:24]}
{[%emt 00:00:19]} 73. Rd3 {[%clk 00:00:28]} {[%emt 00:00:13]} Bc7 {[%clk
00:00:27]} {[%emt 00:00:07]} 74. Rc3 {[%clk 00:00:29]} {[%emt 00:00:08]} Bb6+
{[%clk 00:00:36]} 75. Kf1 {[%clk 00:00:38]} Bb5+ {[%clk 00:00:44]} {[%emt
00:00:05]} 76. Ke1 {[%clk 00:00:44]} {[%emt 00:00:04]} Ba5 {[%clk 00:00:51]}
{[%emt 00:00:04]} 0-1

[Event "Velká cena Novohradska - A"]
[Site "Nové Hrady, Czech Republic"]
[Date "2024.10.12"]
[Round "2.4"]
[White "Slonek, Richard"]
[Black "Čech, Nicolas"]
[Result "1-0"]
[TimeControl "2x20min+10s/tah"]
[WhiteFideId "23744553"]
[BlackFideId "23764228"]
[WhiteElo "1524"]
[BlackElo "1626"]

1. e4 {[%clk 00:20:17]} {[%emt 00:00:03]} c5 {[%clk 00:20:18]} {[%emt
00:00:01]} 2. d4 {[%clk 00:20:26]} {[%emt 00:00:02]} cxd4 {[%clk 00:20:21]}
{[%emt 00:00:07]} 3. c3 {[%clk 00:20:35]} {[%emt 00:00:01]} dxc3 {[%clk
00:20:21]} {[%emt 00:00:11]} 4. Nxc3 {[%clk 00:20:42]} {[%emt 00:00:02]} Nc6
{[%clk 00:20:09]} {[%emt 00:00:21]} 5. Nf3 {[%clk 00:20:48]} {[%emt 00:00:04]}
e6 {[%clk 00:19:31]} {[%emt 00:00:49]} 6. Bb5 {[%clk 00:20:43]} {[%emt
00:00:15]} a6 {[%clk 00:19:14]} {[%emt 00:00:27]} 7. Ba4 {[%clk 00:20:43]}
{[%emt 00:00:09]} Qc7 {[%clk 00:18:49]} {[%emt 00:00:36]} 8. Be3 {[%clk
00:20:38]} {[%emt 00:00:15]} Nf6 {[%clk 00:18:32]} {[%emt 00:00:27]} 9. O-O
{[%clk 00:20:19]} {[%emt 00:00:29]} Be7 {[%clk 00:18:08]} {[%emt 00:00:34]} 10.
Re1 {[%clk 00:20:10]} {[%emt 00:00:19]} O-O {[%clk 00:15:49]} {[%emt 00:02:29]}
11. Rc1 {[%clk 00:18:09]} {[%emt 00:02:11]} Qb8 {[%clk 00:15:20]} {[%emt
00:00:40]} 12. Bc2 {[%clk 00:16:01]} {[%emt 00:02:18]} Rd8 {[%clk 00:10:06]}
{[%emt 00:05:24]} 13. Bb6 {[%clk 00:15:34]} {[%emt 00:00:36]} Rf8 {[%clk
00:08:25]} {[%emt 00:01:51]} 14. e5 {[%clk 00:15:41]} {[%emt 00:00:03]} Ne8
{[%clk 00:07:47]} {[%emt 00:00:48]} 15. Qd3 {[%clk 00:15:38]} {[%emt 00:00:13]}
f5 {[%clk 00:07:36]} {[%emt 00:00:21]} 16. Re3 {[%clk 00:13:19]} {[%emt
00:02:29]} d5 {[%clk 00:05:18]} {[%emt 00:02:29]} 17. Rce1 {[%clk 00:11:16]}
{[%emt 00:02:12]} Bd7 {[%clk 00:04:14]} {[%emt 00:01:14]} 18. Nd4 {[%clk
00:09:55]} {[%emt 00:01:31]} Bd8 {[%clk 00:03:42]} {[%emt 00:00:43]} 19. Bc5
{[%clk 00:08:51]} {[%emt 00:01:13]} Be7 {[%clk 00:02:56]} {[%emt 00:00:56]} 20.
Nxc6 {[%clk 00:08:20]} {[%emt 00:00:42]} bxc6 {[%clk 00:02:08]} {[%emt
00:00:58]} 21. Bxe7 {[%clk 00:08:27]} {[%emt 00:00:02]} Rf7 {[%clk 00:02:17]}
22. Ba3 {[%clk 00:08:25]} {[%emt 00:00:13]} Nc7 {[%clk 00:01:45]} {[%emt
00:00:43]} 23. Bd6 {[%clk 00:08:30]} {[%emt 00:00:04]} Qb7 {[%clk 00:01:43]}
{[%emt 00:00:12]} 24. b3 {[%clk 00:08:14]} {[%emt 00:00:27]} Nb5 {[%clk
00:01:41]} {[%emt 00:00:12]} 25. Nxb5 {[%clk 00:07:59]} {[%emt 00:00:24]} axb5
{[%clk 00:01:49]} {[%emt 00:00:02]} 26. Bb1 {[%clk 00:08:08]} {[%emt 00:00:01]}
Qb6 {[%clk 00:00:44]} {[%emt 00:01:15]} 27. Rc1 {[%clk 00:08:06]} {[%emt
00:00:12]} Be8 {[%clk 00:00:41]} {[%emt 00:00:14]} 28. Rh3 {[%clk 00:07:57]}
{[%emt 00:00:18]} h6 {[%clk 00:00:46]} {[%emt 00:00:04]} 29. Bc5 {[%clk
00:07:28]} {[%emt 00:00:40]} Qc7 {[%clk 00:00:38]} {[%emt 00:00:18]} 30. Qg3
{[%clk 00:07:33]} {[%emt 00:00:04]} Kh7 {[%clk 00:00:24]} {[%emt 00:00:24]} 31.
Rh4 {[%clk 00:05:58]} {[%emt 00:01:46]} Rd7 {[%clk 00:00:27]} {[%emt 00:00:07]}
32. h3 {[%clk 00:05:51]} {[%emt 00:00:17]} Qa5 {[%clk 00:00:22]} {[%emt
00:00:16]} 33. Rg4 {[%clk 00:05:26]} {[%emt 00:00:34]} Qd2 {[%clk 00:00:24]}
{[%emt 00:00:08]} 34. Rf1 {[%clk 00:05:24]} {[%emt 00:00:12]} Rxa2 {[%clk
00:00:21]} {[%emt 00:00:13]} 35. Rd4 {[%clk 00:05:25]} {[%emt 00:00:09]} Qa5
{[%clk 00:00:15]} {[%emt 00:00:16]} 36. Bxa2 {[%clk 00:05:32]} {[%emt
00:00:03]} Qxa2 {[%clk 00:00:22]} {[%emt 00:00:03]} 37. Rdd1 {[%clk 00:05:34]}
{[%emt 00:00:08]} Qa5 {[%clk 00:00:23]} {[%emt 00:00:08]} 38. b4 {[%clk
00:05:36]} {[%emt 00:00:09]} Qc7 {[%clk 00:00:26]} {[%emt 00:00:07]} 39. Ra1
{[%clk 00:05:39]} {[%emt 00:00:07]} Qb8 {[%clk 00:00:17]} {[%emt 00:00:19]} 40.
Ra5 {[%clk 00:05:30]} {[%emt 00:00:19]} d4 {[%clk 00:00:21]} {[%emt 00:00:06]}
41. Rd1 {[%clk 00:05:27]} {[%emt 00:00:13]} d3 {[%clk 00:00:22]} {[%emt
00:00:09]} 42. Bd6 {[%clk 00:05:16]} {[%emt 00:00:21]} Qb6 {[%clk 00:00:17]}
{[%emt 00:00:14]} 43. Rxd3 {[%clk 00:05:04]} {[%emt 00:00:22]} 1-0

[Event "Velká cena Novohradska - A"]
[Site "Nové Hrady, Czech Republic"]
[Date "2024.10.12"]
[Round "2.5"]
[White "Dudarec, Elias"]
[Black "Mountassir, Karim"]
[Result "1/2-1/2"]
[TimeControl "2x20min+10s/tah"]
[WhiteFideId "23714930"]
[BlackFideId "23746327"]
[WhiteElo "1588"]
[BlackElo "1614"]

1. e4 {[%clk 00:20:18]} {[%emt 00:00:02]} e5 {[%clk 00:20:17]} {[%emt
00:00:03]} 2. d4 {[%clk 00:20:25]} {[%emt 00:00:03]} exd4 {[%clk 00:20:05]}
{[%emt 00:00:22]} 3. c3 {[%clk 00:20:34]} d3 {[%clk 00:20:08]} {[%emt
00:00:09]} 4. Bxd3 {[%clk 00:20:41]} {[%emt 00:00:03]} Nc6 {[%clk 00:20:12]}
{[%emt 00:00:06]} 5. Nf3 {[%clk 00:20:49]} {[%emt 00:00:01]} Bc5 {[%clk
00:19:58]} {[%emt 00:00:23]} 6. b4 {[%clk 00:20:50]} {[%emt 00:00:10]} Bb6
{[%clk 00:19:57]} {[%emt 00:00:11]} 7. O-O {[%clk 00:20:46]} {[%emt 00:00:14]}
d6 {[%clk 00:19:54]} {[%emt 00:00:14]} 8. h3 {[%clk 00:20:53]} {[%emt
00:00:02]} Be6 {[%clk 00:19:41]} {[%emt 00:00:23]} 9. a4 {[%clk 00:20:30]}
{[%emt 00:00:33]} a6 {[%clk 00:19:44]} {[%emt 00:00:07]} 10. Re1 {[%clk
00:19:34]} {[%emt 00:01:06]} Nf6 {[%clk 00:19:15]} {[%emt 00:00:39]} 11. Bg5
{[%clk 00:19:40]} {[%emt 00:00:05]} Ne5 {[%clk 00:18:27]} {[%emt 00:00:56]} 12.
Nxe5 {[%clk 00:19:07]} {[%emt 00:00:44]} dxe5 {[%clk 00:18:32]} {[%emt
00:00:05]} 13. Qf3 {[%clk 00:18:33]} {[%emt 00:00:43]} c6 {[%clk 00:16:23]}
{[%emt 00:02:20]} 14. Na3 {[%clk 00:18:08]} {[%emt 00:00:35]} h6 {[%clk
00:16:12]} {[%emt 00:00:20]} 15. Bh4 {[%clk 00:18:11]} {[%emt 00:00:08]} Qe7
{[%clk 00:15:33]} {[%emt 00:00:49]} 16. Nc4 {[%clk 00:16:30]} {[%emt 00:01:51]}
Bc7 {[%clk 00:15:10]} {[%emt 00:00:33]} 17. Ne3 {[%clk 00:16:12]} {[%emt
00:00:28]} g5 {[%clk 00:14:10]} {[%emt 00:01:10]} 18. Bg3 {[%clk 00:16:09]}
{[%emt 00:00:13]} O-O {[%clk 00:14:02]} {[%emt 00:00:17]} 19. Nf5 {[%clk
00:14:39]} {[%emt 00:01:41]} Bxf5 {[%clk 00:13:56]} {[%emt 00:00:16]} 20. Qxf5
{[%clk 00:12:43]} {[%emt 00:02:06]} Nh5 {[%clk 00:10:41]} {[%emt 00:03:24]} 21.
Bc4 {[%clk 00:09:56]} {[%emt 00:02:58]} Qf6 {[%clk 00:07:44]} {[%emt 00:03:08]}
22. Bh2 {[%clk 00:04:10]} {[%emt 00:05:54]} Rad8 {[%clk 00:05:41]} {[%emt
00:02:13]} 23. Rad1 {[%clk 00:03:38]} {[%emt 00:00:43]} Qxf5 {[%clk 00:02:37]}
{[%emt 00:03:14]} 24. exf5 {[%clk 00:03:46]} Nf4 {[%clk 00:02:33]} {[%emt
00:00:16]} 25. Bxf4 {[%clk 00:02:52]} {[%emt 00:01:04]} gxf4 {[%clk 00:02:33]}
{[%emt 00:00:09]} 26. a5 {[%clk 00:02:46]} {[%emt 00:00:17]} Rxd1 {[%clk
00:02:22]} {[%emt 00:00:21]} 27. Rxd1 {[%clk 00:02:55]} Rd8 {[%clk 00:02:31]}
28. Re1 {[%clk 00:00:55]} {[%emt 00:02:12]} Kg7 {[%clk 00:02:21]} {[%emt
00:00:20]} 29. g3 {[%clk 00:00:32]} {[%emt 00:00:32]} fxg3 {[%clk 00:02:21]}
{[%emt 00:00:11]} 30. fxg3 {[%clk 00:00:40]} f6 {[%clk 00:02:26]} {[%emt
00:00:07]} 31. Re3 {[%clk 00:00:20]} {[%emt 00:00:30]} Rd2 {[%clk 00:02:22]}
{[%emt 00:00:14]} 32. Rd3 {[%clk 00:00:16]} {[%emt 00:00:13]} Rxd3 {[%clk
00:02:24]} {[%emt 00:00:08]} 33. Bxd3 {[%emt 00:00:11]} Kf8 {[%clk 00:02:16]}
{[%emt 00:00:09]} 34. Kf2 {[%clk 00:00:33]} {[%emt 00:00:02]} Kg7 {[%clk
00:02:11]} {[%emt 00:00:15]} 35. Kf3 {[%clk 00:00:34]} {[%emt 00:00:10]} e4+
{[%clk 00:01:18]} {[%emt 00:01:01]} 36. Bxe4 {[%clk 00:00:39]} {[%emt
00:00:06]} Be5 {[%clk 00:01:27]} {[%emt 00:00:01]} 37. c4 {[%clk 00:00:40]}
{[%emt 00:00:09]} Bc3 {[%clk 00:01:36]} {[%emt 00:00:02]} 38. b5 {[%clk
00:00:41]} {[%emt 00:00:09]} axb5 {[%clk 00:01:17]} {[%emt 00:00:29]} 39. cxb5
{[%clk 00:00:40]} {[%emt 00:00:10]} cxb5 {[%clk 00:01:24]} {[%emt 00:00:09]} 40.
Bxb7 {[%clk 00:00:47]} Bxa5 {[%clk 00:01:32]} 41. Ba6 {[%clk 00:00:49]} {[%emt
00:00:06]} b4 {[%clk 00:01:38]} {[%emt 00:00:04]} 42. Bc4 {[%clk 00:00:57]} Bb6
{[%clk 00:01:43]} {[%emt 00:00:06]} 43. g4 {[%clk 00:01:01]} {[%emt 00:00:06]}
Kf8 {[%clk 00:01:36]} {[%emt 00:00:16]} 44. Kg3 {[%clk 00:01:07]} {[%emt
00:00:05]} Kg7 {[%clk 00:01:09]} {[%emt 00:00:37]} 45. Kh4 {[%clk 00:01:11]}
{[%emt 00:00:06]} Bc7 {[%clk 00:01:13]} {[%emt 00:00:06]} 46. Kh5 {[%clk
00:01:12]} {[%emt 00:00:09]} Bg3 {[%clk 00:01:11]} {[%emt 00:00:12]} 47. h4
{[%clk 00:01:14]} {[%emt 00:00:07]} Bf4 {[%clk 00:00:55]} {[%emt 00:00:27]} 48.
Bb3 {[%clk 00:01:16]} {[%emt 00:00:08]} Be5 {[%clk 00:00:52]} {[%emt 00:00:13]}
49. g5 {[%clk 00:01:03]} {[%emt 00:00:23]} hxg5 {[%clk 00:00:35]} {[%emt
00:00:26]} 50. hxg5 {[%clk 00:01:11]} fxg5 {[%clk 00:00:44]} 51. Kxg5 {[%clk
00:01:20]} Bf6+ {[%clk 00:00:51]} {[%emt 00:00:07]} 52. Kh5 {[%clk 00:01:23]}
{[%emt 00:00:07]} Be7 {[%clk 00:00:36]} {[%emt 00:00:27]} 1/2-1/2

[Event "Velká cena Novohradska - A"]
[Site "Nové Hrady, Czech Republic"]
[Date "2024.10.12"]
[Round "2.6"]
[White "Ponomarenko, Marko"]
[Black "Hokr, Matyáš"]
[Result "0-1"]
[TimeControl "2x20min+10s/tah"]
[WhiteFideId "23777931"]
[BlackFideId "23734663"]
[WhiteElo "1498"]
[BlackElo "1534"]

1. e4 {[%clk 00:20:19]} e6 {[%clk 00:20:19]} {[%emt 00:00:02]} 2. d4 {[%emt
00:00:02]} d5 {[%emt 00:00:01]} 3. exd5 {[%clk 00:20:32]} {[%emt 00:00:04]}
exd5 {[%clk 00:20:38]} 4. Bd3 {[%clk 00:20:40]} {[%emt 00:00:03]} Nf6 {[%clk
00:20:46]} {[%emt 00:00:02]} 5. Nf3 {[%clk 00:20:45]} {[%emt 00:00:05]} Bd6
{[%clk 00:20:54]} {[%emt 00:00:02]} 6. O-O {[%clk 00:20:50]} {[%emt 00:00:05]}
O-O {[%clk 00:21:02]} {[%emt 00:00:02]} 7. Bg5 {[%clk 00:20:49]} {[%emt
00:00:10]} Bg4 {[%clk 00:21:03]} {[%emt 00:00:10]} 8. Nbd2 {[%clk 00:20:54]}
{[%emt 00:00:05]} c6 {[%clk 00:21:09]} {[%emt 00:00:05]} 9. c3 {[%clk
00:20:59]} {[%emt 00:00:05]} Nbd7 {[%clk 00:21:16]} {[%emt 00:00:02]} 10. Qc2
{[%clk 00:20:50]} {[%emt 00:00:19]} Qc7 {[%clk 00:21:24]} {[%emt 00:00:02]} 11.
h3 {[%clk 00:20:42]} {[%emt 00:00:18]} Bh5 {[%clk 00:21:32]} {[%emt 00:00:02]}
12. Rfe1 {[%clk 00:20:29]} {[%emt 00:00:22]} h6 {[%clk 00:21:23]} {[%emt
00:00:19]} 13. Bh4 {[%clk 00:20:16]} {[%emt 00:00:24]} g5 {[%clk 00:20:56]}
{[%emt 00:00:37]} 14. g4 {[%clk 00:18:50]} {[%emt 00:01:37]} Bxg4 {[%clk
00:20:06]} {[%emt 00:01:00]} 15. hxg4 {[%clk 00:18:42]} {[%emt 00:00:18]} gxh4
{[%clk 00:19:37]} {[%emt 00:00:38]} 16. Bf5 {[%clk 00:18:01]} {[%emt 00:00:51]}
Kh8 {[%clk 00:19:07]} {[%emt 00:00:40]} 17. Kf1 {[%clk 00:18:03]} {[%emt
00:00:08]} Rg8 {[%clk 00:19:13]} {[%emt 00:00:04]} 18. Ke2 {[%clk 00:17:36]}
{[%emt 00:00:37]} Rae8+ {[%clk 00:19:14]} {[%emt 00:00:09]} 19. Kd1 {[%clk
00:17:43]} {[%emt 00:00:02]} Rxe1+ {[%clk 00:19:21]} {[%emt 00:00:02]} 20. Kxe1
{[%clk 00:17:50]} {[%emt 00:00:04]} Nxg4 {[%clk 00:19:27]} {[%emt 00:00:05]} 21.
Nb3 {[%clk 00:17:33]} {[%emt 00:00:27]} Ndf6 {[%clk 00:19:26]} {[%emt
00:00:11]} 22. Ke2 {[%clk 00:17:05]} {[%emt 00:00:37]} Qe7+ {[%clk 00:19:32]}
{[%emt 00:00:05]} 23. Kd3 {[%clk 00:17:08]} {[%emt 00:00:07]} Nh5 {[%clk
00:18:51]} {[%emt 00:00:50]} 24. Re1 {[%clk 00:16:44]} {[%emt 00:00:34]} Qf6
{[%clk 00:18:28]} {[%emt 00:00:34]} 25. Bxg4 {[%clk 00:16:22]} {[%emt
00:00:32]} Rxg4 {[%clk 00:18:33]} {[%emt 00:00:04]} 26. Kd2 {[%clk 00:15:26]}
{[%emt 00:01:07]} Qxf3 {[%clk 00:18:11]} {[%emt 00:00:32]} 27. Kc1 {[%clk
00:14:44]} {[%emt 00:00:52]} h3 {[%clk 00:18:07]} {[%emt 00:00:15]} 0-1